[Event "44th Chess Olympiad Open 2022"]
[Site "Chennai"]
[Date "2022.08.02"]
[Round "5.77"]
[White "Ahmad, Md Siraj Munir"]
[Black "De Gondo, Simplice Armel"]
[Result "1/2-1/2"]
[WhiteElo "2035"]
[BlackElo "2135"]
[Annotator "NA RC"]
[PlyCount "157"]
[EventDate "2022.??.??"]
[TimeControl "60"]

1. e4 {[%emt 0:00:06]} c5 {[%emt 0:00:01]} 2. Nf3 {[%emt 0:00:19]} d6 {[%emt 0:
00:00]} 3. Bb5+ {[%emt 0:00:51]} Nd7 {[%emt 0:00:02]} 4. d4 {[%emt 0:00:55]}
cxd4 {[%emt 0:00:22]} 5. Qxd4 {[%emt 0:00:09]} Qc7 {[%emt 0:06:00]} 6. c4 {
[%emt 0:02:51]} Ngf6 {[%emt 0:00:14]} 7. Nc3 {[%emt 0:02:48]} e6 {[%emt 0:00:
00]} 8. Bg5 {[%emt 0:01:28]} Be7 {[%emt 0:00:14]} 9. O-O {[%emt 0:01:15]} O-O {
[%emt 0:00:46]} 10. Rfd1 {[%emt 0:06:08]} Rd8 {[%emt 0:00:41]} 11. Rac1 {
[%emt 0:19:16]} Ne5 {[%emt 0:07:56]} 12. Nxe5 {[%emt 0:06:32]} dxe5 {[%emt 0:
00:00]} 13. Qe3 {[%emt 0:01:33]} Rxd1+ {[%emt 0:02:27]} 14. Rxd1 {[%emt 0:00:
00]} a6 {[%emt 0:25:03]} 15. Bxf6 {[%emt 0:09:46]} Bxf6 {[%emt 0:09:43]} 16.
Ba4 {[%emt 0:01:54]} Qxc4 {[%emt 0:00:33]} 17. Qb6 {[%emt 0:00:46]} g6 {
[%emt 0:05:43]} 18. Rd6 {[%emt 0:01:14]} a5 {[%emt 0:02:35]} 19. Bb3 {[%emt 0:
00:00]} Qb4 {[%emt 0:00:05]} 20. Qxb4 {[%emt 0:10:20]} axb4 {[%emt 0:00:05]}
21. Na4 {[%emt 0:01:57]} Be7 {[%emt 0:00:21]} 22. Rd1 {[%emt 0:05:27]} Ra6 {
[%emt 0:00:14]} 23. Rc1 {[%emt 0:00:59]} Bd7 {[%emt 0:00:24]} 24. Nc5 {[%emt 0:
00:00]} Rc6 {[%emt 0:00:08]} 25. Nd3 {[%emt 0:00:26]} Rxc1+ {[%emt 0:01:53]}
26. Nxc1 {[%emt 0:00:02]} Bc6 {[%emt 0:00:00]} 27. Nd3 {[%emt 0:01:06]} Bd6 {
[%emt 0:00:06]} 28. f3 {[%emt 0:00:14]} Kf8 {[%emt 0:00:03]} 29. Kf2 {[%emt 0:
00:00]} Bb5 {[%emt 0:00:29]} 30. Ke3 {[%emt 0:00:21]} Ke7 {[%emt 0:00:19]} 31.
h3 {[%emt 0:00:41]} Kf6 {[%emt 0:00:56]} 32. g3 {[%emt 0:00:36]} h5 {[%emt 0:
00:00]} 33. Ke2 {[%emt 0:01:32]} Kg5 {[%emt 0:00:52]} 34. Ke3 {[%emt 0:00:49]}
Bxd3 {[%emt 0:00:58]} 35. Kxd3 {[%emt 0:00:08]} h4 {[%emt 0:00:08]} 36. Ke2 {
[%emt 0:02:10]} hxg3 {[%emt 0:00:10]} 37. Kf1 {[%emt 0:00:14]} Kf4 {[%emt 0:00:
00]} 38. Kg2 {[%emt 0:00:09]} Bc5 {[%emt 0:00:09]} 39. Ba4 {[%emt 0:00:21]} g5
{[%emt 0:01:13]} 40. Be8 {[%emt 0:00:16]} f5 {[%emt 0:00:04]} 41. Bg6 {[%emt 0:
00:00]} Bd4 {[%emt 0:37:09]} 42. b3 {[%emt 0:00:36]} Bf2 {[%emt 0:00:05]} 43.
Bh7 {[%emt 0:00:27]} b6 {[%emt 0:11:06]} 44. Bg6 {[%emt 0:00:14]} Be1 {[%emt 0:
00:00]} 45. Bh7 {[%emt 0:00:06]} Bf2 {[%emt 0:01:51]} 46. Bg6 {[%emt 0:00:06]}
Bc5 {[%emt 0:00:32]} 47. Bh7 {[%emt 0:00:11]} Be7 {[%emt 0:00:22]} 48. Bg6 {
[%emt 0:00:14]} g4 {[%emt 0:01:08]} 49. hxg4 {[%emt 0:00:23]} fxg4 {[%emt 0:00:
00]} 50. fxg4 {[%emt 0:00:09]} Bh4 {[%emt 0:02:25]} 51. Bh7 {[%emt 0:00:39]}
Kxg4 {[%emt 0:00:06]} 52. Bg6 {[%emt 0:00:10]} Kf4 {[%emt 0:00:18]} 53. Bh7 {
[%emt 0:00:11]} Be7 {[%emt 0:00:35]} 54. Bg6 {[%emt 0:00:08]} Bc5 {[%emt 0:00:
00]} 55. Bh7 {[%emt 0:00:06]} Bf2 {[%emt 0:00:18]} 56. Bg6 {[%emt 0:00:06]} Ke3
{[%emt 0:00:11]} 57. Bh7 {[%emt 0:00:12]} Kd4 {[%emt 0:00:02]} 58. Kf3 {
[%emt 0:00:57]} Be1 {[%emt 0:01:07]} 59. Bg6 {[%emt 0:00:14]} Kd3 {[%emt 0:00:
00]} 60. Bh7 {[%emt 0:00:49]} Kc3 {[%emt 0:00:14]} 61. Bg8 {[%emt 0:00:29]} Kb2
{[%emt 0:00:03]} 62. Bxe6 {[%emt 0:00:09]} Kxa2 {[%emt 0:00:47]} 63. Bd5 {
[%emt 0:00:17]} Kb2 {[%emt 0:00:02]} 64. Be6 {[%emt 0:00:26]} Kc3 {[%emt 0:00:
00]} 65. Bd5 {[%emt 0:00:15]} b5 {[%emt 0:00:14]} 66. Be6 {[%emt 0:00:33]} Bf2
{[%emt 0:00:43]} 67. Bf7 {[%emt 0:00:18]} Kd4 {[%emt 0:00:06]} 68. Bd5 {
[%emt 0:00:32]} Kd3 {[%emt 0:00:25]} 69. Bc6 {[%emt 0:00:36]} Kc3 {[%emt 0:00:
00]} 70. Bd5 {[%emt 0:00:10]} Be1 {[%emt 0:01:04]} 71. Kg2 {[%emt 0:00:24]} Kd3
{[%emt 0:00:06]} 72. Kf3 {[%emt 0:00:40]} Kd4 {[%emt 0:00:14]} 73. Bc6 {
[%emt 0:00:45]} Kc3 {[%emt 0:00:58]} 74. Bd5 {[%emt 0:00:08]} Bf2 {[%emt 0:00:
00]} 75. Kg2 {[%emt 0:00:20]} Kd2 {[%emt 0:00:03]} 76. Bc6 {[%emt 0:00:19]} Ke3
{[%emt 0:00:08]} 77. Bd5 {[%emt 0:00:20]} Kf4 {[%emt 0:00:58]} 78. Bc6 {
[%emt 0:00:18]} Be1 {[%emt 0:00:12]} 79. Bd5 {[%emt 0:00:20]} 1/2-1/2

[Event "44th Chess Olympiad Open 2022"]
[Site "Chennai"]
[Date "2022.08.02"]
[Round "5.77"]
[White "Sharikhan, Shawal"]
[Black "Mambe, Lobognon Anderson O"]
[Result "1/2-1/2"]
[WhiteElo "1789"]
[BlackElo "1921"]
[Annotator "NA RC"]
[PlyCount "173"]
[EventDate "2022.??.??"]
[TimeControl "60"]

1. e4 {[%emt 0:00:10]} e6 {[%emt 0:00:17]} 2. d4 {[%emt 0:00:32]} d5 {[%emt 0:
00:00]} 3. Nc3 {[%emt 0:00:16]} Nf6 {[%emt 0:00:14]} 4. e5 {[%emt 0:00:37]}
Nfd7 {[%emt 0:00:14]} 5. f4 {[%emt 0:00:08]} c5 {[%emt 0:00:34]} 6. Nf3 {
[%emt 0:00:37]} Qb6 {[%emt 0:00:34]} 7. Be3 {[%emt 0:02:00]} a6 {[%emt 0:00:49]
} 8. Na4 {[%emt 0:01:02]} Qa5+ {[%emt 0:00:44]} 9. c3 {[%emt 0:00:26]} cxd4 {
[%emt 0:00:52]} 10. b4 {[%emt 0:01:29]} Qc7 {[%emt 0:00:30]} 11. Qxd4 {[%emt 0:
00:00]} Nc6 {[%emt 0:01:55]} 12. Qd2 {[%emt 0:00:15]} Be7 {[%emt 0:01:19]} 13.
Be2 {[%emt 0:01:34]} O-O {[%emt 0:01:45]} 14. O-O {[%emt 0:00:53]} b5 {[%emt 0:
00:00]} 15. Nb2 {[%emt 0:00:59]} Bb7 {[%emt 0:00:22]} 16. a4 {[%emt 0:02:51]}
bxa4 {[%emt 0:00:20]} 17. Nxa4 {[%emt 0:01:02]} Rac8 {[%emt 0:01:01]} 18. Kh1 {
[%emt 0:03:55]} Rfd8 {[%emt 0:01:22]} 19. Nd4 {[%emt 0:04:04]} Nxd4 {[%emt 0:
00:00]} 20. Bxd4 {[%emt 0:00:59]} Re8 {[%emt 0:01:39]} 21. h3 {[%emt 0:05:39]}
f6 {[%emt 0:00:58]} 22. Qe3 {[%emt 0:03:14]} fxe5 {[%emt 0:00:56]} 23. fxe5 {
[%emt 0:01:19]} Rf8 {[%emt 0:00:20]} 24. Nb6 {[%emt 0:03:14]} Nxb6 {[%emt 0:00:
00]} 25. Bxb6 {[%emt 0:00:10]} Qxc3 {[%emt 0:00:17]} 26. Qxc3 {[%emt 0:06:09]}
Rxf1+ {[%emt 0:01:30]} 27. Bxf1 {[%emt 0:18:30]} Rxc3 {[%emt 0:03:15]} 28. Bd4
{[%emt 0:03:55]} Rb3 {[%emt 0:15:12]} 29. b5 {[%emt 0:13:04]} Ra3 {[%emt 0:00:
00]} 30. Rxa3 {[%emt 0:00:51]} Bxa3 {[%emt 0:00:03]} 31. bxa6 {[%emt 0:00:20]}
Ba8 {[%emt 0:00:24]} 32. Kg1 {[%emt 0:03:43]} Kf7 {[%emt 0:01:44]} 33. Bd3 {
[%emt 0:01:05]} g6 {[%emt 0:00:16]} 34. Kf2 {[%emt 0:00:26]} Bc6 {[%emt 0:00:
00]} 35. a7 {[%emt 0:01:15]} Ke7 {[%emt 0:00:34]} 36. Ke1 {[%emt 0:00:43]} Kd8
{[%emt 0:00:46]} 37. Kd2 {[%emt 0:01:30]} Bb4+ {[%emt 0:00:12]} 38. Kc2 {
[%emt 0:01:07]} Ba5 {[%emt 0:01:13]} 39. g4 {[%emt 0:03:26]} Kc7 {[%emt 0:00:
00]} 40. Bb5 {[%emt 0:03:16]} Ba8 {[%emt 0:00:39]} 41. Be8 {[%emt 0:31:54]} Kd8
{[%emt 0:31:05]} 42. Bb5 {[%emt 0:03:34]} Kc7 {[%emt 0:00:09]} 43. Kd3 {
[%emt 0:01:36]} Bb4 {[%emt 0:00:38]} 44. Kc2 {[%emt 0:00:26]} Be1 {[%emt 0:00:
00]} 45. Kb3 {[%emt 0:00:13]} Bd2 {[%emt 0:00:54]} 46. Ka4 {[%emt 0:01:04]} Bf4
{[%emt 0:02:32]} 47. Be8 {[%emt 0:02:19]} Bd2 {[%emt 0:00:00]} 48. Kb5 {
[%emt 0:01:32]} Be1 {[%emt 0:00:00]} 49. Bb6+ {[%emt 0:01:53]} Kc8 {[%emt 0:00:
00]} 50. Bc6 {[%emt 0:00:45]} Bb7 {[%emt 0:00:00]} 51. a8=Q+ {[%emt 0:00:46]}
Bxa8 {[%emt 0:00:25]} 52. Bxa8 {[%emt 0:00:16]} Bc3 {[%emt 0:00:11]} 53. Bc6 {
[%emt 0:02:24]} Bxe5 {[%emt 0:00:25]} 54. Kb4 {[%emt 0:00:00]} Bf6 {[%emt 0:00:
00]} 55. Kb3 {[%emt 0:00:00]} Bg7 {[%emt 0:00:00]} 56. Kc2 {[%emt 0:00:00]} Bf6
{[%emt 0:00:00]} 57. Kd3 {[%emt 0:00:00]} Bg7 {[%emt 0:00:00]} 58. Bd4 {
[%emt 0:00:00]} Bf8 {[%emt 0:00:00]} 59. Bf6 {[%emt 0:00:00]} Ba3 {[%emt 0:00:
00]} 60. Be8 {[%emt 0:00:00]} Kc7 {[%emt 0:00:00]} 61. Be5+ {[%emt 0:00:00]}
Kd8 {[%emt 0:00:00]} 62. Bf7 {[%emt 0:00:00]} Ke7 {[%emt 0:00:00]} 63. Bg8 {
[%emt 0:00:00]} h6 {[%emt 0:00:00]} 64. h4 {[%emt 0:00:00]} Bc1 {[%emt 0:00:00]
} 65. h5 {[%emt 0:00:00]} gxh5 {[%emt 0:00:00]} 66. gxh5 {[%emt 0:00:00]} Bg5 {
[%emt 0:00:00]} 67. Ke2 {[%emt 0:00:00]} Bc1 {[%emt 0:00:00]} 68. Kf2 {[%emt 0:
00:00]} Bg5 {[%emt 0:00:00]} 69. Kf3 {[%emt 0:00:00]} Bd2 {[%emt 0:03:15]} 70.
Bh7 {[%emt 0:00:36]} Kf7 {[%emt 0:00:00]} 71. Bg6+ {[%emt 0:00:00]} Ke7 {
[%emt 0:00:00]} 72. Ke2 {[%emt 0:00:00]} Bg5 {[%emt 0:00:00]} 73. Kd3 {[%emt 0:
00:00]} Bc1 {[%emt 0:00:00]} 74. Kc2 {[%emt 0:00:00]} Be3 {[%emt 0:00:00]} 75.
Kb3 {[%emt 0:00:00]} Bg5 {[%emt 0:00:00]} 76. Ka4 {[%emt 0:00:00]} Bf6 {
[%emt 0:00:00]} 77. Bb8 {[%emt 0:00:00]} e5 {[%emt 0:00:00]} 78. Bf5 {[%emt 0:
00:00]} Bg7 {[%emt 0:00:00]} 79. Kb5 {[%emt 0:00:00]} Kf6 {[%emt 0:00:00]} 80.
Bg6 {[%emt 0:00:00]} Ke6 {[%emt 0:00:54]} 81. Kb4 {[%emt 0:01:41]} Bf6 {
[%emt 0:00:00]} 82. Kb3 {[%emt 0:00:00]} Bg5 {[%emt 0:00:00]} 83. Kc2 {[%emt 0:
00:00]} e4 {[%emt 0:00:00]} 84. Bg3 {[%emt 0:01:21]} Be3 {[%emt 0:00:00]} 85.
Kd1 {[%emt 0:00:17]} Kf6 {[%emt 0:00:00]} 86. Ke2 {[%emt 0:00:13]} Bg5 {
[%emt 0:00:00]} 87. Bb8 {[%emt 0:02:35]} 1/2-1/2

[Event "44th Chess Olympiad Open 2022"]
[Site "Chennai"]
[Date "2022.08.02"]
[Round "5.78"]
[White "Arnold Smith"]
[Black "Bongo Ngombele, Tary"]
[Result "1-0"]
[WhiteElo "1931"]
[BlackElo "1688"]
[Annotator "NA RC"]
[PlyCount "83"]
[EventDate "2022.??.??"]
[TimeControl "60"]

1. e4 {[%emt 0:00:11]} e5 {[%emt 0:00:07]} 2. Nf3 {[%emt 0:00:23]} Nc6 {
[%emt 0:01:41]} 3. d4 {[%emt 0:01:31]} exd4 {[%emt 0:00:00]} 4. Bc4 {[%emt 0:
00:00]} Be7 {[%emt 0:00:42]} 5. Nxd4 {[%emt 0:02:17]} Nf6 {[%emt 0:00:48]} 6.
Nxc6 {[%emt 0:01:58]} dxc6 {[%emt 0:00:27]} 7. Qxd8+ {[%emt 0:01:40]} Bxd8 {
[%emt 0:00:15]} 8. O-O {[%emt 0:00:48]} O-O {[%emt 0:00:24]} 9. Re1 {[%emt 0:
00:00]} Re8 {[%emt 0:00:26]} 10. f3 {[%emt 0:01:20]} b5 {[%emt 0:00:55]} 11.
Bb3 {[%emt 0:00:39]} Be7 {[%emt 0:01:06]} 12. Nc3 {[%emt 0:01:18]} Bc5+ {
[%emt 0:00:49]} 13. Be3 {[%emt 0:00:51]} Bb6 {[%emt 0:01:10]} 14. Rad1 {
[%emt 0:00:47]} b4 {[%emt 0:00:27]} 15. Na4 {[%emt 0:01:30]} Bxe3+ {[%emt 0:00:
00]} 16. Rxe3 {[%emt 0:00:34]} Ba6 {[%emt 0:03:08]} 17. Nc5 {[%emt 0:01:55]}
Bb5 {[%emt 0:00:23]} 18. e5 {[%emt 0:00:34]} a5 {[%emt 0:07:12]} 19. Kf2 {
[%emt 0:03:12]} Nd5 {[%emt 0:02:20]} 20. Bxd5 {[%emt 0:00:41]} cxd5 {[%emt 0:
00:00]} 21. Rxd5 {[%emt 0:00:03]} Bc4 {[%emt 0:02:39]} 22. Rd1 {[%emt 0:02:09]}
Bxa2 {[%emt 0:12:53]} 23. b3 {[%emt 0:04:19]} Rad8 {[%emt 0:01:11]} 24. Nd3 {
[%emt 0:03:11]} a4 {[%emt 0:02:57]} 25. bxa4 {[%emt 0:00:10]} Ra8 {[%emt 0:00:
00]} 26. Nxb4 {[%emt 0:01:34]} Rxa4 {[%emt 0:00:09]} 27. Nxa2 {[%emt 0:00:16]}
Rxa2 {[%emt 0:00:08]} 28. Rc3 {[%emt 0:00:06]} Ra7 {[%emt 0:10:22]} 29. Rd7 {
[%emt 0:00:29]} Rc8 {[%emt 0:01:24]} 30. e6 {[%emt 0:04:29]} fxe6 {[%emt 0:00:
00]} 31. Rc6 {[%emt 0:00:04]} e5 {[%emt 0:11:18]} 32. Re6 {[%emt 0:00:28]} Ra2
{[%emt 0:01:04]} 33. Ree7 {[%emt 0:00:54]} Rxc2+ {[%emt 0:00:25]} 34. Kg3 {
[%emt 0:00:00]} Kh8 {[%emt 0:01:59]} 35. Rxg7 {[%emt 0:02:25]} Rg8 {[%emt 0:00:
00]} 36. Rxg8+ {[%emt 0:00:38]} Kxg8 {[%emt 0:00:08]} 37. Re7 {[%emt 0:00:04]}
Rc5 {[%emt 0:00:19]} 38. Kg4 {[%emt 0:00:23]} c6 {[%emt 0:06:13]} 39. h4 {
[%emt 0:00:44]} Rc4+ {[%emt 0:07:04]} 40. Kg5 {[%emt 0:02:03]} Rc2 {[%emt 0:00:
00]} 41. Kf6 {[%emt 0:31:55]} Rxg2 {[%emt 0:31:00]} 42. Re8# {[%emt 0:00:27]}
1-0

[Event "44th Chess Olympiad Open 2022"]
[Site "Chennai"]
[Date "2022.08.02"]
[Round "5.78"]
[White "Bobby Ballah"]
[Black "Koumba, Mounguen Jose Evrar"]
[Result "1-0"]
[WhiteElo "1916"]
[BlackElo "1942"]
[Annotator "NA RC"]
[PlyCount "57"]
[EventDate "2022.??.??"]
[TimeControl "60"]

1. b3 {[%emt 0:00:37]} e5 {[%emt 0:00:27]} 2. Bb2 {[%emt 0:00:06]} Nc6 {
[%emt 0:00:08]} 3. Nc3 {[%emt 0:00:06]} d5 {[%emt 0:00:40]} 4. e3 {[%emt 0:00:
00]} Nf6 {[%emt 0:00:46]} 5. Qe2 {[%emt 0:01:03]} Be6 {[%emt 0:06:04]} 6. O-O-O
{[%emt 0:00:55]} a6 {[%emt 0:00:21]} 7. Nf3 {[%emt 0:05:18]} e4 {[%emt 0:07:40]
} 8. Ng1 {[%emt 0:05:22]} Bd6 {[%emt 0:01:03]} 9. f3 {[%emt 0:02:30]} Qe7 {
[%emt 0:00:22]} 10. Kb1 {[%emt 0:00:30]} Ba3 {[%emt 0:02:54]} 11. Ba1 {[%emt 0:
00:00]} O-O {[%emt 0:02:43]} 12. h3 {[%emt 0:00:44]} Qb4 {[%emt 0:00:50]} 13.
g4 {[%emt 0:03:24]} d4 {[%emt 0:10:58]} 14. Nxe4 {[%emt 0:09:50]} Nxe4 {
[%emt 0:00:45]} 15. fxe4 {[%emt 0:00:30]} Rfd8 {[%emt 0:00:28]} 16. Nf3 {
[%emt 0:01:05]} d3 {[%emt 0:00:45]} 17. Qf2 {[%emt 0:09:46]} Na5 {[%emt 0:00:
00]} 18. Bxd3 {[%emt 0:25:14]} Rxd3 {[%emt 0:00:18]} 19. Nd4 {[%emt 0:00:09]}
Nxb3 {[%emt 0:02:05]} 20. cxb3 {[%emt 0:06:15]} c5 {[%emt 0:17:21]} 21. Bc3 {
[%emt 0:02:37]} Qb6 {[%emt 0:00:08]} 22. Nxe6 {[%emt 0:00:42]} Qxe6 {[%emt 0:
00:00]} 23. Qf5 {[%emt 0:00:30]} Qb6 {[%emt 0:04:22]} 24. Rhf1 {[%emt 0:01:02]}
Rf8 {[%emt 0:00:54]} 25. Kc2 {[%emt 0:12:47]} Qb5 {[%emt 0:05:59]} 26. e5 {
[%emt 0:04:24]} c4 {[%emt 0:00:23]} 27. e6 {[%emt 0:01:43]} Rd5 {[%emt 0:06:53]
} 28. exf7+ {[%emt 0:00:23]} Kh8 {[%emt 0:00:05]} 29. Bxg7+ {[%emt 0:00:13]}
1-0

[Event "44th Chess Olympiad Open 2022"]
[Site "Chennai"]
[Date "2022.08.02"]
[Round "5.78"]
[White "Bongo Akanga Ndjila, Barthelemy"]
[Black "Daniel Kolliemelen"]
[Result "1/2-1/2"]
[WhiteElo "1803"]
[BlackElo "1870"]
[Annotator "NA RC COMBH"]
[PlyCount "155"]
[EventDate "2022.??.??"]
[TimeControl "60"]

1. d4 {[%emt 0:01:09]} d5 {[%emt 0:00:29]} 2. c4 {[%emt 0:00:10]} c6 {[%emt 0:
00:00]} 3. Nc3 {[%emt 0:00:18]} f5 {[%emt 0:00:25]} 4. e3 {[%emt 0:01:53]} e6 {
[%emt 0:00:25]} 5. Qh5+ {[%emt 0:01:17]} g6 {[%emt 0:00:24]} 6. Qf3 {[%emt 0:
00:00]} Bg7 {[%emt 0:00:32]} 7. h4 {[%emt 0:01:05]} Nf6 {[%emt 0:00:18]} 8. Nh3
{[%emt 0:00:19]} Qc7 {[%emt 0:04:53]} 9. Nf4 {[%emt 0:00:40]} Bh6 {[%emt 0:00:
00]} 10. Qg3 {[%emt 0:14:10]} Bxf4 {[%emt 0:04:36]} 11. Qxf4 {[%emt 0:00:09]}
Qxf4 {[%emt 0:02:55]} 12. exf4 {[%emt 0:00:06]} Nbd7 {[%emt 0:02:53]} 13. c5 {
[%emt 0:02:10]} b6 {[%emt 0:03:22]} 14. cxb6 {[%emt 0:09:11]} axb6 {[%emt 0:00:
00]} 15. f3 {[%emt 0:00:13]} Ba6 {[%emt 0:03:39]} 16. Bxa6 {[%emt 0:03:09]}
Rxa6 {[%emt 0:00:15]} 17. O-O {[%emt 0:00:02]} Kf7 {[%emt 0:00:33]} 18. Bd2 {
[%emt 0:07:27]} Rha8 {[%emt 0:01:39]} 19. a3 {[%emt 0:02:40]} b5 {[%emt 0:00:
00]} 20. Rae1 {[%emt 0:00:08]} Nb6 {[%emt 0:03:51]} 21. Na2 {[%emt 0:04:15]}
Nc4 {[%emt 0:02:09]} 22. Bc1 {[%emt 0:00:09]} R6a7 {[%emt 0:08:40]} 23. Nb4 {
[%emt 0:00:29]} Rc7 {[%emt 0:01:44]} 24. Nd3 {[%emt 0:00:16]} Nd7 {[%emt 0:00:
00]} 25. Re2 {[%emt 0:10:49]} h6 {[%emt 0:11:23]} 26. Rfe1 {[%emt 0:00:13]} Re8
{[%emt 0:02:34]} 27. Rc2 {[%emt 0:09:18]} Rec8 {[%emt 0:05:04]} 28. Rce2 {
[%emt 0:06:48]} Re8 {[%emt 0:01:35]} 29. b3 {[%emt 0:02:05]} Na5 {[%emt 0:00:
00]} 30. Rb2 {[%emt 0:00:11]} Nb7 {[%emt 0:00:45]} 31. Ne5+ {[%emt 0:16:57]}
Nxe5 {[%emt 0:02:29]} 32. fxe5 {[%emt 0:00:11]} c5 {[%emt 0:01:11]} 33. dxc5 {
[%emt 0:00:27]} Nxc5 {[%emt 0:03:02]} 34. Rc2 {[%emt 0:00:07]} Rec8 {[%emt 0:
00:00]} 35. Bxh6 {[%emt 0:02:23]} Nd3 {[%emt 0:01:23]} 36. Rxc7+ {[%emt 0:00:
00]} Rxc7 {[%emt 0:00:07]} 37. Rb1 {[%emt 0:01:39]} Ra7 {[%emt 0:01:06]} 38.
Ra1 {[%emt 0:01:23]} Nxe5 {[%emt 0:01:35]} 39. Kf2 {[%emt 0:00:06]} Nc6 {
[%emt 0:00:55]} 40. Be3 {[%emt 0:02:10]} d4 {[%emt 0:00:23]} 41. Bd2 {[%emt 0:
00:00]} Ke7 {[%emt 0:36:42]} 42. g4 {[%emt 0:00:21]} fxg4 {[%emt 0:02:16]} 43.
fxg4 {[%emt 0:00:16]} Kd6 {[%emt 0:00:35]} 44. a4 {[%emt 0:02:11]} e5 {[%emt 0:
00:00]} 45. h5 {[%emt 0:00:08]} Kd5 {[%emt 0:00:44]} 46. hxg6 {[%emt 0:00:49]}
e4 {[%emt 0:03:41]} 47. Bh6 {[%emt 0:00:21]} Ne7 {[%emt 0:00:28]} 48. g7 {
[%emt 0:01:25]} Ng8 {[%emt 0:01:18]} 49. g5 {[%emt 0:00:00]} bxa4 {[%emt 0:00:
00]} 50. bxa4 {[%emt 0:00:00]} Rf7+ {[%emt 0:00:00]} 51. Ke1 {[%emt 0:00:00]}
Rb7 {[%emt 0:00:00]} 52. a5 {[%emt 0:00:00]} e3 {[%emt 0:00:00]} 53. a6 {
[%emt 0:00:00]} Ra7 {[%emt 0:00:00]} 54. Ke2 {[%emt 0:00:00]} Ke4 {[%emt 0:00:
00]} 55. Ra4 {[%emt 0:00:00]} Ne7 {[%emt 0:00:00]} 56. g8=Q {[%emt 0:05:28]}
Nxg8 {[%emt 0:00:00]} 57. Bf8 {[%emt 0:00:00]} Kd5 {[%emt 0:04:40]} 58. Kd3 {
[%emt 0:00:00]} Kc6 {[%emt 0:02:10]} 59. Kxd4 {[%emt 0:00:00]} Kb5 {[%emt 0:00:
00]} 60. Rb4+ {[%emt 0:00:00]} Kc6 {[%emt 0:01:55]} 61. Rc4+ {[%emt 0:00:00]}
Kb5 {[%emt 0:02:16]} 62. Rc5+ {[%emt 0:00:00]} Kxa6 {[%emt 0:00:57]} 63. Kxe3 {
[%emt 0:00:00]} Rf7 {[%emt 0:01:04]} 64. Bd6 {[%emt 0:00:00]} Rd7 {[%emt 0:00:
00]} 65. Bf8 {[%emt 0:00:00]} Rf7 {[%emt 0:00:07]} 66. Rc8 {[%emt 0:00:00]} Kb7
{[%emt 0:00:35]} 67. Re8 {[%emt 0:00:00]} Rf5 {[%emt 0:00:44]} 68. Bh6 {
[%emt 0:01:26]} Nxh6 {[%emt 0:00:38]} 69. gxh6 {[%emt 0:00:05]} Rh5 {[%emt 0:
00:00]} 70. Re6 {[%emt 0:00:22]} Kc7 {[%emt 0:00:23]} 71. Kf4 {[%emt 0:00:25]}
Kd7 {[%emt 0:00:38]} 72. Ra6 {[%emt 0:00:56]} Ke7 {[%emt 0:00:16]} 73. Kg4 {
[%emt 0:01:40]} Rh1 {[%emt 0:00:32]} 74. Kg5 {[%emt 0:00:26]} Kf7 {[%emt 0:00:
00]} 75. Ra7+ {[%emt 0:02:35]} Kg8 {[%emt 0:00:09]} 76. h7+ {[%emt 0:01:05]}
Kh8 {[%emt 0:00:05]} 77. Kg6 {[%emt 0:00:11]} Rg1+ {[%emt 0:00:44]} 78. Kh6 {
[%emt 0:00:09]} 1/2-1/2

[Event "44th Chess Olympiad Open 2022"]
[Site "Chennai"]
[Date "2022.08.02"]
[Round "5.79"]
[White "Pereira, Sergio Murilo de Ar"]
[Black "Jaiswal Prashant S"]
[Result "1-0"]
[WhiteElo "2093"]
[BlackElo "1683"]
[Annotator "NA RC"]
[PlyCount "65"]
[EventDate "2022.??.??"]
[TimeControl "60"]

1. e4 {[%emt 0:04:28]} c5 {[%emt 0:00:36]} 2. c3 {[%emt 0:00:06]} d5 {[%emt 0:
00:00]} 3. exd5 {[%emt 0:00:07]} Qxd5 {[%emt 0:00:08]} 4. d4 {[%emt 0:00:04]}
Nf6 {[%emt 0:00:39]} 5. dxc5 {[%emt 0:00:46]} Qxc5 {[%emt 0:04:46]} 6. Na3 {
[%emt 0:00:48]} a6 {[%emt 0:02:19]} 7. Be3 {[%emt 0:10:19]} Qc7 {[%emt 0:00:27]
} 8. Nf3 {[%emt 0:07:59]} e6 {[%emt 0:00:32]} 9. Nc4 {[%emt 0:05:25]} Nbd7 {
[%emt 0:04:13]} 10. a4 {[%emt 0:04:30]} Be7 {[%emt 0:02:53]} 11. Qd2 {[%emt 0:
00:00]} O-O {[%emt 0:01:21]} 12. Bf4 {[%emt 0:01:46]} Qd8 {[%emt 0:01:19]} 13.
Be2 {[%emt 0:02:58]} Nd5 {[%emt 0:07:02]} 14. Bg3 {[%emt 0:03:10]} Nc5 {
[%emt 0:03:25]} 15. Qc2 {[%emt 0:02:01]} Nd7 {[%emt 0:03:41]} 16. O-O {[%emt 0:
00:00]} N7b6 {[%emt 0:06:34]} 17. Rfd1 {[%emt 0:03:17]} Nd7 {[%emt 0:08:42]}
18. Nd4 {[%emt 0:03:01]} Bc5 {[%emt 0:02:37]} 19. Bf3 {[%emt 0:01:08]} N7f6 {
[%emt 0:07:40]} 20. Nb3 {[%emt 0:08:34]} Ba7 {[%emt 0:01:21]} 21. Nca5 {
[%emt 0:02:40]} Qb6 {[%emt 0:16:00]} 22. c4 {[%emt 0:02:24]} Nb4 {[%emt 0:00:
00]} 23. Qc3 {[%emt 0:04:19]} Nbd5 {[%emt 0:06:40]} 24. cxd5 {[%emt 0:01:31]}
exd5 {[%emt 0:00:18]} 25. Nd4 {[%emt 0:06:02]} Ne4 {[%emt 0:00:48]} 26. Bxe4 {
[%emt 0:01:12]} dxe4 {[%emt 0:00:15]} 27. Nc4 {[%emt 0:01:42]} Qg6 {[%emt 0:00:
00]} 28. Nd6 {[%emt 0:01:06]} Bg4 {[%emt 0:03:14]} 29. f3 {[%emt 0:01:17]} exf3
{[%emt 0:00:50]} 30. gxf3 {[%emt 0:00:08]} Bh3 {[%emt 0:00:33]} 31. Kh1 {
[%emt 0:02:36]} h5 {[%emt 0:02:05]} 32. Rg1 {[%emt 0:00:56]} Qf6 {[%emt 0:00:
00]} 33. Rad1 {[%emt 0:02:52]} 1-0